Organisation Name,Organisation Code,Directorate/Service,Service Category Label,Service Code,Supplier Name,Supplier Reference,Payment Date,Transaction Number,Net Payment,Purpose of Spend
North West Leicestershire District Council,31UH,Chief Exec,Chief Executive,CHEX,ESPO,A000958,25/10/2017,1349169,310,Stationery
North West Leicestershire District Council,31UH,Housing,HRA Performance & Business Support,HRAPBS,Capita Business Services Ltd,A002968,04/10/2017,1350311,3183.33,Computing
North West Leicestershire District Council,31UH,Communications,Corporate - Customer Services,CS,ESPO,A000958,25/10/2017,1350527,400,Stationery
North West Leicestershire District Council,31UH,Environmental Health,Environmental Health & Licensing,EEHL,Eville And Jones Limited,A033670,11/10/2017,1351041,1039,Vetinary Services
North West Leicestershire District Council,31UH,Planning & Development,Building Control,EBC,Resolution Data Management Ltd,A024994,19/10/2017,1351265,1394,Building Control Mobile Working
North West Leicestershire District Council,31UH,Housing,HRA Performance & Business Support,HRAPBS,Capita Business Services Ltd,A002968,04/10/2017,1351545,1039.1,Computing
North West Leicestershire District Council,31UH,Environmental Health,Environmental Health & Licensing,EEHL,Mega Arumugam,A043638,04/10/2017,1351700,350,Training Courses (Organised)
North West Leicestershire District Council,31UH,Information Technology,ICT Services,ICT,Idox Software Ltd,A034157,11/10/2017,1351702,950,Admin Equipment - Hire/Rental
North West Leicestershire District Council,31UH,Housing,HRA Housing Management,HRAHM,Alexandra Plc,A000033,01/11/2017,1351738,308.45,Protective Clothing
North West Leicestershire District Council,31UH,Planning & Development,Environment Community Planning,ECP,Leicestershire CAB,A040553,04/10/2017,1351779,32425,Grants
North West Leicestershire District Council,31UH,Planning & Development,Environment Community Planning,ECP,Leicestershire CAB,A040553,04/10/2017,1351816,32425,Grants
North West Leicestershire District Council,31UH,Street Management,Environment Parks,ENOP,New Build Landscaping & Home,A043278,04/10/2017,1351842,890,External Contractor Payments
North West Leicestershire District Council,31UH,Leisure Centres,Hermitage Leisure Centre,HLC,Shires Event Hire,A036676,04/10/2017,1351854,310,Event Expenditure
North West Leicestershire District Council,31UH,Finance,Housing Benefits,BENS,Harborough District Council,A008631,04/10/2017,1351871,4500,Housing Subsidy Booklet production 
North West Leicestershire District Council,31UH,Street Management,Environment General Technician,ENOGT,County Drains Leicester Ltd,A024295,04/10/2017,1351947,525,Routine Ground Maintenance
North West Leicestershire District Council,31UH,Street Management,Environment - Street Scene,ESS,Coalville Signs,A000370,04/10/2017,1351948,499.5,Signage
North West Leicestershire District Council,31UH,Street Management,Environment Parks,ENOP,Buxton's Ltd,A029426,25/10/2017,1351968,1166.67,Protective Clothing
North West Leicestershire District Council,31UH,Planning & Development,Environment Community Planning,ECP,Baydale Control Systems Ltd,A042565,04/10/2017,1352033,319.5,CCTV Maintenance
North West Leicestershire District Council,31UH,Information Technology,ICT Services,ICT,Freedom Communications (UK) Ltd,A032826,11/10/2017,1352058,1200,Contract Payments (Other) Ext
North West Leicestershire District Council,31UH,Information Technology,ICT Services,ICT,Insight Uk,A021505,04/10/2017,1352062,692.46,Admin Equipment - Purchased & Recharged
North West Leicestershire District Council,31UH,Leisure & Culture,Cultural Services Arts & Events,CULTEV,Real Reindeer Ltd,A043326,04/10/2017,1352064,597.5,Event Expenditure
North West Leicestershire District Council,31UH,Housing,HRA Performance & Business Support,HRAPBS,Michael Page International Recruitment Ltd,A041893,04/10/2017,1352066,3833.73,Agency Staff
North West Leicestershire District Council,31UH,Planning & Development,Environment Community Planning,ECP,Premier Security Services (Midlands) Limited,A038132,04/10/2017,1352069,288,Maintenance Contract
North West Leicestershire District Council,31UH,Street Management,Environment - Street Scene,ESS,RH Environmental Limited,A037505,04/10/2017,1352071,286.2,Training Courses (Organised)
North West Leicestershire District Council,31UH,Corporate Director,Human Resources,HR,Kalu Training and Consultancy,A043918,04/10/2017,1352072,850,Corporate Training
North West Leicestershire District Council,31UH,Corporate Director,Human Resources,HR,Kalu Training and Consultancy,A043918,04/10/2017,1352073,850,Corporate Training
North West Leicestershire District Council,31UH,Street Management,Environment Transport,ENOT,Taylor Engineering & Fabrications Ltd,A036178,04/10/2017,1352074,551.34,Repairs - Parts
North West Leicestershire District Council,31UH,Finance,Exchequer Services,EXCH,Bottomline Technologies Ltd,A044265,04/10/2017,1352078,443,Stationery
North West Leicestershire District Council,31UH,Finance,Exchequer Services,EXCH,Comensura Limited,A036958,04/10/2017,1352088,33405.22,Agency Staff
North West Leicestershire District Council,31UH,Housing Strategy,Community - Housing Strategy,HS,Primrose Hotels Ltd T/A Hermitage Park Hotel,A010779,04/10/2017,1352091,325,Homelessness Accomodation
North West Leicestershire District Council,31UH,Housing Repairs,HRA Housing Repairs & Maintenance,HRAHRM,Emperor Scaffolding Limited,A038405,04/10/2017,1352092,400,Hire Of Operational Equipment
North West Leicestershire District Council,31UH,Housing Repairs,HRA Housing Repairs & Maintenance,HRAHRM,Emperor Scaffolding Limited,A038405,04/10/2017,1352095,300,Hire Of Operational Equipment
North West Leicestershire District Council,31UH,Housing,HRA Housing Management,HRAHM,Oneserve Ltd,A041321,04/10/2017,1352100,750,Computing
North West Leicestershire District Council,31UH,Housing Repairs,HRA Housing Repairs & Maintenance,HRAHRM,G Purchase Construction Ltd,A032830,04/10/2017,1352101,8164.29,Housing repairs
North West Leicestershire District Council,31UH,Finance,Financial Planning,FINPLA,Hinckley & Bosworth Borough Council,A000770,04/10/2017,1352102,17190,Shared Revs & Bens Partnership costs
North West Leicestershire District Council,31UH,Information Technology,ICT Services,ICT,Premier Paper Group,A042438,04/10/2017,1352107,331.15,Consumable Materials
North West Leicestershire District Council,31UH,Leisure Centres,Hood Park Leisure Centre,HPLC,Argos Distributors Ltd,A000069,04/10/2017,1352109,315.83,Operational Equipment
North West Leicestershire District Council,31UH,Street Management,Environment - Street Scene,ESS,4 Planning Delivers Ltd,A043779,11/10/2017,1352111,673,Training Expenses
North West Leicestershire District Council,31UH,Leisure Centres,Hood Park Leisure Centre,HPLC,John Merison BMC Ltd,A001092,04/10/2017,1352115,13084.76,Recreation & Play Areas
North West Leicestershire District Council,31UH,Leisure Centres,Hood Park Leisure Centre,HPLC,ADT Fire And Security,A000021,04/10/2017,1352116,259,General Repairs
North West Leicestershire District Council,31UH,Chief Exec,Chief Executive,CHEX,Peter Brett Associates T/a Roger Tym & Partners,A028258,04/10/2017,1352124,13500,Consultants Fees
North West Leicestershire District Council,31UH,Housing,HRA Housing Management,HRAHM,Leicestershire County Council,A000950,04/10/2017,1352125,6842.98,Contract Cleaning
North West Leicestershire District Council,31UH,Property Services,Property Facilities Management,PROPFM,Thomas Cassie & Sons (Leicester) Ltd,A044078,11/10/2017,1352131,2850,General Repairs
North West Leicestershire District Council,31UH,Information Technology,ICT Services,ICT,Cuttlefish Multimedia Ltd,A032102,04/10/2017,1352133,1718.33,Website Maintenance
North West Leicestershire District Council,31UH,Leisure Centres,Hood Park Leisure Centre,HPLC,Admiral Cleaning Supplies Ltd,A040930,04/10/2017,1352136,666,Water Treatment
North West Leicestershire District Council,31UH,Leisure Centres,Hood Park Leisure Centre,HPLC,Barlow Blinds,A040305,04/10/2017,1352145,696,General Repairs
North West Leicestershire District Council,31UH,Leisure Centres,Hermitage Leisure Centre,HLC,Kingsfield Computer Products Ltd,A039732,04/10/2017,1352146,257.72,Operational Equipment
North West Leicestershire District Council,31UH,Street Management,Environment - Street Scene,ESS,4 Planning Delivers Ltd,A043779,11/10/2017,1352149,672,Consultants Fees
North West Leicestershire District Council,31UH,Street Management,Environment - Street Scene,ESS,4 Planning Delivers Ltd,A043779,11/10/2017,1352150,352,Consultants Fees
North West Leicestershire District Council,31UH,Street Management,Environment Transport,ENOT,Partic Motor Spares Ltd,A042528,04/10/2017,1352161,260,Repairs - Parts
North West Leicestershire District Council,31UH,Street Management,Environment Transport,ENOT,Partic Motor Spares Ltd,A042528,04/10/2017,1352164,350,Repairs - Parts
North West Leicestershire District Council,31UH,Housing,HRA Performance & Business Support,HRAPBS,Hinckley & Bosworth Borough Council,A000770,19/10/2017,1352166,250,Computing
North West Leicestershire District Council,31UH,Street Management,Environment Parks,ENOP,Naturescape Ltd,A044290,04/10/2017,1352167,300.83,Horticultural Supplies
North West Leicestershire District Council,31UH,Street Management,Environment Transport,ENOT,Ford & Slater Group Ltd,A000625,04/10/2017,1352168,519.6,Repairs - Parts
North West Leicestershire District Council,31UH,Housing Repairs,HRA Housing Repairs & Maintenance,HRAHRM,G Purchase Construction Ltd,A032830,04/10/2017,1352170,70597.8,Housing repairs
North West Leicestershire District Council,31UH,Planning & Development,Environment Community Planning,ECP,Valuation Office Agency,A034291,04/10/2017,1352173,4498.5,External Legal Fees & Advice
North West Leicestershire District Council,31UH,Housing,HRA Housing Management,HRAHM,Redacted- Personal Data,A044341,04/10/2017,1352178,455.56,Under Occupancy Incentives
North West Leicestershire District Council,31UH,Leisure Centres,Hood Park Leisure Centre,HPLC,Virgin Media Business,A035373,04/10/2017,1352179,711.49,Telephone Charge / Rental
North West Leicestershire District Council,31UH,Property Services,Property Facilities Management,PROPFM,TECSERV UK LIMITED,A028261,04/10/2017,1352183,1227.2,General Repairs
North West Leicestershire District Council,31UH,Housing,HRA Housing Management,HRAHM,G Purchase Construction Ltd,A032830,04/10/2017,1352184,39362.27,Housing repairs
North West Leicestershire District Council,31UH,Leisure Centres,Hermitage Bar & Catering,HLBC,Snackline Direct Ltd,A042489,04/10/2017,1352186,699.83,Bar Provisions
North West Leicestershire District Council,31UH,Housing Repairs,HRA Housing Repairs & Maintenance,HRAHRM,Orbis Property Protection Ltd,A028149,04/10/2017,1352208,342.5,Void Property Clearance Services
North West Leicestershire District Council,31UH,Housing Repairs,HRA Housing Repairs & Maintenance,HRAHRM,Leicestershire County Council,A000950,04/10/2017,1352213,3045,Contract Payments (Dws) Ext
North West Leicestershire District Council,31UH,Housing Repairs,HRA Housing Repairs & Maintenance,HRAHRM,Orbis Property Protection Ltd,A028149,04/10/2017,1352220,470,Void Property Clearance Services
North West Leicestershire District Council,31UH,Housing Repairs,HRA Housing Repairs & Maintenance,HRAHRM,Orbis Property Protection Ltd,A028149,04/10/2017,1352221,620,Void Property Clearance Services
North West Leicestershire District Council,31UH,Housing Repairs,HRA Housing Repairs & Maintenance,HRAHRM,Leicestershire County Council,A000950,04/10/2017,1352227,3375,Contract Payments (Dws) Ext
North West Leicestershire District Council,31UH,Housing Repairs,HRA Housing Repairs & Maintenance,HRAHRM,TECSERV UK LIMITED,A028261,04/10/2017,1352229,496.64,Door Entry Systems
North West Leicestershire District Council,31UH,Housing Repairs,HRA Housing Repairs & Maintenance,HRAHRM,H20 Utilities Ltd,A043865,04/10/2017,1352230,1125,Associated Drainage Services
North West Leicestershire District Council,31UH,Housing Repairs,HRA Housing Repairs & Maintenance,HRAHRM,Kier Services Maintenance East Ltd,A039980,04/10/2017,1352231,3282.88,Decent Homes
North West Leicestershire District Council,31UH,Housing Repairs,HRA Housing Repairs & Maintenance,HRAHRM,Kier Services Maintenance East Ltd,A039980,04/10/2017,1352232,3346.76,Decent Homes
North West Leicestershire District Council,31UH,Housing Repairs,HRA Housing Repairs & Maintenance,HRAHRM,Kier Services Maintenance East Ltd,A039980,04/10/2017,1352233,4788.66,Decent Homes
North West Leicestershire District Council,31UH,Housing Repairs,HRA Housing Repairs & Maintenance,HRAHRM,Laker BMS Ltd,A031787,04/10/2017,1352234,350,Housing Repairs
North West Leicestershire District Council,31UH,Housing Repairs,HRA Housing Repairs & Maintenance,HRAHRM,Timber-Link Fencing Ltd,A033297,04/10/2017,1352235,1400,External Materials
North West Leicestershire District Council,31UH,Housing Repairs,HRA Housing Repairs & Maintenance,HRAHRM,Timber-Link Fencing Ltd,A033297,04/10/2017,1352236,1252,External Materials
North West Leicestershire District Council,31UH,Housing Repairs,HRA Housing Repairs & Maintenance,HRAHRM,Timber-Link Fencing Ltd,A033297,04/10/2017,1352238,800,External Materials
North West Leicestershire District Council,31UH,Housing Repairs,HRA Housing Repairs & Maintenance,HRAHRM,Timber-Link Fencing Ltd,A033297,04/10/2017,1352239,275,External Materials
North West Leicestershire District Council,31UH,Housing Repairs,HRA Housing Repairs & Maintenance,HRAHRM,Timber-Link Fencing Ltd,A033297,04/10/2017,1352240,387,External Materials
North West Leicestershire District Council,31UH,Housing Repairs,HRA Housing Repairs & Maintenance,HRAHRM,Timber-Link Fencing Ltd,A033297,04/10/2017,1352241,700,External Materials
North West Leicestershire District Council,31UH,Street Management,Environment Parks,ENOP,Green Garden,A041601,04/10/2017,1352243,1670.56,External Materials
North West Leicestershire District Council,31UH,Property Services,Property Facilities Management,PROPFM,Geze Uk Limited,A023130,04/10/2017,1352244,3554.04,General Repairs
North West Leicestershire District Council,31UH,Information Technology,ICT Services,ICT,ACS Systems (UK) Ltd T/a ACS Office Solutions,A043447,04/10/2017,1352245,3870,Administrative Equipment
North West Leicestershire District Council,31UH,Housing,HRA Performance & Business Support,HRAPBS,BMG Research Ltd,A044013,19/10/2017,1352246,2565,Annual Report To Tenants
North West Leicestershire District Council,31UH,Property Services,Property Commercial Lettings,PROPCL,Urban Planters Leicestershire (limited),A003371,04/10/2017,1352248,552.5,Internal Decorations
North West Leicestershire District Council,31UH,Information Technology,ICT Services,ICT,Centreprise International Ltd,A043431,04/10/2017,1352249,870,Administrative Equipment
North West Leicestershire District Council,31UH,Property Services,Property Facilities Management,PROPFM,ESPO,A000958,04/10/2017,1352259,767,Contract Payments (Other) Ext
North West Leicestershire District Council,31UH,Housing Strategy,Community - Housing Strategy,HS,East Midlands Housing Association,A010100,04/10/2017,1352267,9355,Grants
North West Leicestershire District Council,31UH,Housing Strategy,Community - Housing Strategy,HS,Homestart (N.W. Leics),A000780,04/10/2017,1352268,4905,Grants
North West Leicestershire District Council,31UH,Leisure Centres,Hood Park Leisure Centre,HPLC,ENER.G Combined Power Ltd,A034390,11/10/2017,1352270,425,Operational Equipment
North West Leicestershire District Council,31UH,Corporate Director,Human Resources,HR,Smith Sports & Prestige Ltd,A044342,04/10/2017,1352271,9200,Employee Car Loan Scheme
North West Leicestershire District Council,31UH,Chief Exec,Chief Executive,CHEX,David Tucker Associates,A044236,11/10/2017,1352273,935,Legal Fees
North West Leicestershire District Council,31UH,Corporate Director,Human Resources,HR,Volkswagen Financial Services,A043221,04/10/2017,1352276,2557,Vehicle Leasing
North West Leicestershire District Council,31UH,Street Management,Environment - Street Scene,ESS,Metric Group Ltd (Sales),A028996,04/10/2017,1352279,252,Subscriptions
North West Leicestershire District Council,31UH,Property Services,Property Commercial Lettings,PROPCL,Purchase Power,A008204,04/10/2017,1352369,2020,Postages
North West Leicestershire District Council,31UH,Information Technology,ICT Services,ICT,Orange Plc,A018592,04/10/2017,1352380,3405.3,Mobile Telephones
North West Leicestershire District Council,31UH,Housing Repairs,HRA Housing Repairs & Maintenance,HRAHRM,National Grid Gas Plc,A032629,04/10/2017,1352381,1200,Utilities- connection services
North West Leicestershire District Council,31UH,Neighbourhoods & Communities,N & C Community Safety,NACCS,Julia Burkin,A043213,04/10/2017,1352382,1416.25,Consultants Fees
North West Leicestershire District Council,31UH,Finance,Financial Planning,FINPLA,Leicestershire County Council,A000950,04/10/2017,1352383,187200,Highways- Section 278 payment
North West Leicestershire District Council,31UH,Neighbourhoods & Communities,N & C Neighbourhoods,NACN,Rotary Club of Ashby Castle,A044354,04/10/2017,1352386,500,Grants
North West Leicestershire District Council,31UH,Planning & Development,Environment Planning Policy,EPP,Leicestershire County Council,A029607,04/10/2017,1352388,5435.5,Legal/Supervision Fees- Section 278 Agreement
North West Leicestershire District Council,31UH,Street Management,Environment Transport,ENOT,Admiral Cleaning Supplies Ltd,A040930,25/10/2017,1352390,291.15,Consumable Cleaning Materials/Hygiene
North West Leicestershire District Council,31UH,Corporate Director,Human Resources,HR,Health Management Ltd,A038840,11/10/2017,1352391,798.4,Occupational Health Services
North West Leicestershire District Council,31UH,Street Management,Environment Parks,ENOP,Conica Ltd,A044320,11/10/2017,1352396,386.5,External Materials
North West Leicestershire District Council,31UH,Street Management,Environment - Street Scene,ESS,Trevor Roberts,A011099,11/10/2017,1352397,645,Training Courses (Organised)
North West Leicestershire District Council,31UH,Environmental Health,Environmental Services,EES,Zurich Assurance Ltd,A038748,11/10/2017,1352398,273.28,Insurances
North West Leicestershire District Council,31UH,Planning & Development,Environment Planning Policy,EPP,GHM Planning Limited,A034296,11/10/2017,1352399,1861.65,Agency Staff
North West Leicestershire District Council,31UH,Planning & Development,Environment Planning Policy,EPP,GHM Planning Limited,A034296,11/10/2017,1352400,2036.9,Agency Staff
North West Leicestershire District Council,31UH,Housing Repairs,HRA Housing Repairs & Maintenance,HRAHRM,Oakleaf Surveying Ltd,A043749,11/10/2017,1352418,3550,Legal & Professional Services
North West Leicestershire District Council,31UH,Communications,Corporate - Communications,CP,The Copyright Licensing Agency,A011217,19/10/2017,1352419,843.45,Licences
North West Leicestershire District Council,31UH,Street Management,Environment Transport,ENOT,Partic Motor Spares Ltd,A042528,19/10/2017,1352425,268.8,Repairs - Parts
North West Leicestershire District Council,31UH,Street Management,Environment Transport,ENOT,Sherwood Truck and Van Limited,A035120,11/10/2017,1352433,988.42,Repairs - Parts
North West Leicestershire District Council,31UH,Corporate Director,Human Resources,HR,GatenbySanderson Limited,A034524,11/10/2017,1352445,4046,Agency Staff
North West Leicestershire District Council,31UH,Housing Repairs,HRA Housing Repairs & Maintenance,HRAHRM,Kaefer Ltd,A044187,11/10/2017,1352446,3928.9,Contract Payments (Dws) Ext
North West Leicestershire District Council,31UH,Housing Repairs,HRA Housing Repairs & Maintenance,HRAHRM,Kier Services Maintenance East Ltd,A039980,11/10/2017,1352447,103510.96,Decent Homes
North West Leicestershire District Council,31UH,Housing Repairs,HRA Housing Repairs & Maintenance,HRAHRM,Lovell Partnerships Ltd,A039973,11/10/2017,1352448,50934.97,Decent Homes
North West Leicestershire District Council,31UH,Information Technology,ICT Services,ICT,Firmstep,A030931,11/10/2017,1352450,6428.75,Contract Payments (Other) Ext
North West Leicestershire District Council,31UH,Property Services,Property Facilities Management,PROPFM,Regarde Security Ltd,A013049,11/10/2017,1352464,492,Building Security
North West Leicestershire District Council,31UH,Planning & Development,Environment Community Planning,ECP,Warning Zone Ltd,A040709,11/10/2017,1352468,2500,Grants
North West Leicestershire District Council,31UH,Planning & Development,Environment Community Planning,ECP,Age Concern Leics & Rutland,A041115,11/10/2017,1352469,5390,Grants
North West Leicestershire District Council,31UH,Housing Repairs,HRA Housing Repairs & Maintenance,HRAHRM,Emperor Scaffolding Limited,A038405,11/10/2017,1352472,550,Hire Of Operational Equipment
North West Leicestershire District Council,31UH,Housing Repairs,HRA Housing Repairs & Maintenance,HRAHRM,Emperor Scaffolding Limited,A038405,11/10/2017,1352473,400,Hire Of Operational Equipment
North West Leicestershire District Council,31UH,Housing Repairs,HRA Housing Repairs & Maintenance,HRAHRM,Emperor Scaffolding Limited,A038405,11/10/2017,1352474,750,Hire Of Operational Equipment
North West Leicestershire District Council,31UH,Housing Repairs,HRA Housing Repairs & Maintenance,HRAHRM,Emperor Scaffolding Limited,A038405,11/10/2017,1352475,400,Hire Of Operational Equipment
North West Leicestershire District Council,31UH,Street Management,Environment General Technician,ENOGT,Leicestershire County Council,A028430,19/10/2017,1352476,554.86,Signage
North West Leicestershire District Council,31UH,Housing,HRA Housing Management,HRAHM,Leicestershire County Council,A042625,11/10/2017,1352479,4500,Legal & Professional Services
North West Leicestershire District Council,31UH,Housing Repairs,HRA Housing Repairs & Maintenance,HRAHRM,Ward Recycling,A035471,11/10/2017,1352480,364.43,Tipping Charges
North West Leicestershire District Council,31UH,Corporate Director,Human Resources,HR,Wider Plan Ltd,A043948,11/10/2017,1352481,4012,Staff Benefit Scheme
North West Leicestershire District Council,31UH,Leisure Centres,Hermitage Leisure Centre,HLC,MIW Office Solutions Ltd,A030420,25/10/2017,1352484,314.64,Service Contracts
North West Leicestershire District Council,31UH,Street Management,Environment Transport,ENOT,Snap-On Tools Ltd,A001521,11/10/2017,1352491,785,Operational Equipment - Rep & Maint
North West Leicestershire District Council,31UH,Street Management,Environment Transport,ENOT,Accent Wire Ltd,A044269,11/10/2017,1352505,1540,Operational Equipment
North West Leicestershire District Council,31UH,Finance,Exchequer Services,EXCH,Comensura Limited,A036958,11/10/2017,1352508,34631.5,Agency Staff
North West Leicestershire District Council,31UH,Environmental Health,Environmental Health & Licensing,EEHL,Eville And Jones Limited,A033670,11/10/2017,1352509,727.31,Vet Inspection
North West Leicestershire District Council,31UH,Street Management,Environment Transport,ENOT,Berendsen Uk Ltd,A001600,11/10/2017,1352519,285.5,Protective Clothing
North West Leicestershire District Council,31UH,Information Technology,ICT Services,ICT,SSDP Corp Ltd c/o Syncsort Uk Limited,A039733,11/10/2017,1352521,6480,Corporate IT Licences
North West Leicestershire District Council,31UH,Housing,HRA Housing Management,HRAHM,Michael Dyson Associates Ltd,A028431,11/10/2017,1352523,2016,Consultants Fees
North West Leicestershire District Council,31UH,Street Management,Environment - Street Scene,ESS,Leicestershire County Council,A041837,11/10/2017,1352524,8856.66,Parking-Private Owners Fees
North West Leicestershire District Council,31UH,Street Management,Environment - Street Scene,ESS,The Royal Hotel,A001421,11/10/2017,1352525,8777.03,Parking-Private Owners Fees
North West Leicestershire District Council,31UH,Housing Repairs,HRA Housing Repairs & Maintenance,HRAHRM,Ward Recycling,A035471,11/10/2017,1352528,398.83,Tipping Charges
North West Leicestershire District Council,31UH,Housing Repairs,HRA Housing Repairs & Maintenance,HRAHRM,Ward Recycling,A035471,11/10/2017,1352529,336.48,Tipping Charges
North West Leicestershire District Council,31UH,Street Management,Environment Transport,ENOT,Partic Motor Spares Ltd,A042528,19/10/2017,1352530,970,Repairs - Parts
North West Leicestershire District Council,31UH,Planning & Development,Environment - Town Centre/CCTV,ECCTV,Leicestershire County Council,A000950,11/10/2017,1352548,675,Premises Rents
North West Leicestershire District Council,31UH,Street Management,Environment Parks,ENOP,Regarde Security Ltd,A013049,11/10/2017,1352550,823,Security Services
North West Leicestershire District Council,31UH,Leisure Centres,Hermitage Leisure Centre,HLC,Gladstone MRM Ltd,A024642,11/10/2017,1352552,1247.5,Contract Payments (Other) Ext
North West Leicestershire District Council,31UH,Leisure Centres,Hermitage Leisure Centre,HLC,Gladstone MRM Ltd,A024642,19/10/2017,1352553,1590,Computing
North West Leicestershire District Council,31UH,Housing,HRA Performance & Business Support,HRAPBS,Motion Picture Licensing Company Ltd,A041959,11/10/2017,1352554,725.22,Media Licenses
North West Leicestershire District Council,31UH,Street Management,Environment Transport,ENOT,Westbury Industrial Supplies Limited,A009933,11/10/2017,1352556,433.12,Protective Clothing
North West Leicestershire District Council,31UH,Leisure & Culture,Leisure & Cult Mangt,LCM,Mantle Community Arts Limited,A001039,11/10/2017,1352564,3500,Grants
North West Leicestershire District Council,31UH,Neighbourhoods & Communities,N & C Neighbourhoods,NACN,Swannington C E Primary School,A044359,11/10/2017,1352565,500,Grants
North West Leicestershire District Council,31UH,Street Management,Environment Parks,ENOP,Lubbe & Sons (Bulbs) Ltd,A035517,11/10/2017,1352568,2402.5,Horticultural Supplies
North West Leicestershire District Council,31UH,Corporate Director,Human Resources,HR,NWA Social & Market Research Limited,A037146,11/10/2017,1352570,3350,Staff Survey
North West Leicestershire District Council,31UH,Legal & Democratic,Legal Services,LDLS,Martin Lee & Co,A030613,11/10/2017,1352571,590,External Legal Fees & Advice
North West Leicestershire District Council,31UH,Information Technology,ICT Services,ICT,Cable & Wireless Worldwide,A038473,11/10/2017,1352574,3455.74,Admin Equipment - Maintenance
North West Leicestershire District Council,31UH,Finance,Exchequer Services,EXCH,Insight Uk,A021505,,1352575,368,Computing
North West Leicestershire District Council,31UH,Finance,Exchequer Services,EXCH,Selima Limited,A010859,11/10/2017,1352576,2309.88,Computing
North West Leicestershire District Council,31UH,Finance,Exchequer Services,EXCH,Selima Limited,A010859,11/10/2017,1352577,2334.88,Computing
North West Leicestershire District Council,31UH,Finance,Exchequer Services,EXCH,Selima Limited,A010859,11/10/2017,1352578,10200,Computing
North West Leicestershire District Council,31UH,Finance,Exchequer Services,EXCH,Selima Limited,A010859,11/10/2017,1352579,2286.57,Computing
North West Leicestershire District Council,31UH,Finance,Exchequer Services,EXCH,Selima Limited,A010859,11/10/2017,1352580,-8565.66,Computing
North West Leicestershire District Council,31UH,Leisure Centres,Hermitage Leisure Centre,HLC,Gladstone MRM Ltd,A024642,19/10/2017,1352582,5864,computing
North West Leicestershire District Council,31UH,Corporate Director,Human Resources,HR,Learning Pool Ltd,A039508,11/10/2017,1352583,12000,Corporate Training
North West Leicestershire District Council,31UH,Finance,Exchequer Services,EXCH,Insight Uk,A021505,,1352584,-10608,Computing
North West Leicestershire District Council,31UH,Finance,Exchequer Services,EXCH,Insight Uk,A021505,,1352585,8840,Computing
North West Leicestershire District Council,31UH,Housing Repairs,HRA Housing Repairs & Maintenance,HRAHRM,City Electrical Factors Ltd,A003893,19/10/2017,1352587,260.95,Consumable Materials
North West Leicestershire District Council,31UH,Chief Exec,Chief Executive,CHEX,CBRE Ltd,A041437,11/10/2017,1352588,3750,Legal & Professional Services
North West Leicestershire District Council,31UH,Chief Exec,Chief Executive,CHEX,Ecus Ltd,A044014,11/10/2017,1352589,2971.36,Legal Fees
North West Leicestershire District Council,31UH,Chief Exec,Chief Executive,CHEX,CBRE Ltd,A041437,11/10/2017,1352590,4050,Legal & Professional Services
North West Leicestershire District Council,31UH,Street Management,Environment - Street Scene,ESS,4 Planning Delivers Ltd,A043779,19/10/2017,1352591,528,Consultants Fees
North West Leicestershire District Council,31UH,Housing,HRA Housing Management,HRAHM,Redacted- Personal Data,A044171,11/10/2017,1352593,1000,Under Occupancy Incentives
North West Leicestershire District Council,31UH,Street Management,Environment Parks,ENOP,Harlow Bros Limited,A000734,25/10/2017,1352596,250.89,Building Supplies
North West Leicestershire District Council,31UH,Street Management,Environment Transport,ENOT,Partic Motor Spares Ltd,A042528,19/10/2017,1352608,-400,Repairs - Parts
North West Leicestershire District Council,31UH,Chief Exec,Chief Executive,CHEX,Catriona Riddell & Associates Ltd,A042293,11/10/2017,1352612,859.1,Legal & Professional Services
North West Leicestershire District Council,31UH,Legal & Democratic,Legal Services,LDLS,Bankers Automated,A000133,10/10/2017,1352614,1041.67,Legal/Supervision Fees- Section 278 Agreement
North West Leicestershire District Council,31UH,Corporate Director,Human Resources,HR,The Disclosure & Barring Service,A027625,10/10/2017,1352616,572,CRB Checks
North West Leicestershire District Council,31UH,Corporate Director,Human Resources,HR,GatenbySanderson Limited,A034524,11/10/2017,1352619,4046,Agency Staff
North West Leicestershire District Council,31UH,Housing Repairs,HRA Housing Repairs & Maintenance,HRAHRM,Bankers Automated,A000133,10/10/2017,1352620,5212.5,Legal/Supervision Fees- Section 278 Agreement
North West Leicestershire District Council,31UH,Legal & Democratic,Electoral & Land Charges,LDELC,Royal Mail Group Plc,A001418,11/10/2017,1352623,1978.99,Postages
North West Leicestershire District Council,31UH,Finance,Financial Planning,FINPLA,Leicestershire County Council,A000950,10/10/2017,1352624,3805048,Precept
North West Leicestershire District Council,31UH,Finance,Financial Planning,FINPLA,Leicestershire County Council,A000950,10/10/2017,1352625,1832634,Precept
North West Leicestershire District Council,31UH,Legal & Democratic,Electoral & Land Charges,LDELC,SCI Print Limited,A028974,11/10/2017,1352626,6842.75,External Printing
North West Leicestershire District Council,31UH,Legal & Democratic,Electoral & Land Charges,LDELC,SCI Print Limited,A028974,11/10/2017,1352627,4845.88,External Printing
North West Leicestershire District Council,31UH,Finance,Financial Planning,FINPLA,Department for Communities & Local Government,A028518,10/10/2017,1352628,2268113,Subsidy Receipts & Repayments
North West Leicestershire District Council,31UH,Finance,Financial Planning,FINPLA,The Office of the Police and Crime Commissioner for Leicestershire,A007096,10/10/2017,1352629,608107.75,Precept
North West Leicestershire District Council,31UH,Legal & Democratic,Electoral & Land Charges,LDELC,Xpress Software Solutions,A041342,11/10/2017,1352630,7250,Mobile Canvassing Software
North West Leicestershire District Council,31UH,Finance,Financial Planning,FINPLA,"Leicester, Leicestershire and Rutland Combined Fire Service",A028339,10/10/2017,1352631,204099,Precept
North West Leicestershire District Council,31UH,Housing,HRA Housing Management,HRAHM,HMCTS,A033956,10/10/2017,1352633,1746,Legal & Professional Services
North West Leicestershire District Council,31UH,Communications,Corporate - Communications,CP,One Stop Promotions (Leics) Ltd,A001240,11/10/2017,1352634,306.2,Publicity & Promotion
North West Leicestershire District Council,31UH,Finance,Exchequer Services,EXCH,Severn Trent Water,A042250,10/10/2017,1352635,259.5,Water/Mining Searches
North West Leicestershire District Council,31UH,Finance,Exchequer Services,EXCH,Jurys Inn,A042250,10/10/2017,1352635,262.5,Accomodation
North West Leicestershire District Council,31UH,Finance,Exchequer Services,EXCH,AQL,A042250,10/10/2017,1352635,550,SMS Credits
North West Leicestershire District Council,31UH,Finance,Exchequer Services,EXCH,Microsoft,A042250,10/10/2017,1352635,333,Laptop Repair/Exchange
North West Leicestershire District Council,31UH,Finance,Exchequer Services,EXCH,VOSA,A042250,10/10/2017,1352635,410,MOT Slots
North West Leicestershire District Council,31UH,Finance,Exchequer Services,EXCH,CIEH,A042250,10/10/2017,1352635,266,Training Courses (Organised)
North West Leicestershire District Council,31UH,Finance,Financial Planning,FINPLA,Ashby De La Zouch Town Council,A000091,11/10/2017,1352688,50400,Settlement Payment
North West Leicestershire District Council,31UH,Property Services,Property Facilities Management,PROPFM,Wm Saunders Partnership LLP,A035772,11/10/2017,1352689,1950,Asset Protection
North West Leicestershire District Council,31UH,Finance,Exchequer Services,EXCH,HM Revenues & Customs,A038465,11/10/2017,1352690,296.8,Payment To Inland Revenue
North West Leicestershire District Council,31UH,Housing,HRA Performance & Business Support,HRAPBS,Alysium Consulting,A043813,19/10/2017,1352691,9675,Computing
North West Leicestershire District Council,31UH,Property Services,Property Commercial Lettings,PROPCL,British Telecommunications Plc,A000233,11/10/2017,1352692,549.84,Telephones
North West Leicestershire District Council,31UH,Street Management,Environment Transport,ENOT,Post Office Limited,A008559,11/10/2017,1352694,2090,Licences - Road Fund Licence
North West Leicestershire District Council,31UH,Planning & Development,Environment Community Planning,ECP,Ashby Life,A032236,11/10/2017,1352698,253.5,Advertising
North West Leicestershire District Council,31UH,Chief Exec,Chief Executive,CHEX,Three One Zero Design,A036525,11/10/2017,1352701,680,External Printing
North West Leicestershire District Council,31UH,Housing,HRA Housing Management,HRAHM,Leicestershire County Council,A029607,11/10/2017,1352702,4135.5,Legal/Supervision Fees- Section 278 Agreement
North West Leicestershire District Council,31UH,Property Services,Property Commercial Lettings,PROPCL,John Merison BMC Ltd,A001092,11/10/2017,1352704,250,General Repairs
North West Leicestershire District Council,31UH,Property Services,Property Commercial Lettings,PROPCL,John Merison BMC Ltd,A001092,11/10/2017,1352705,2699.54,General Repairs
North West Leicestershire District Council,31UH,Chief Exec,Chief Executive,CHEX,David Nash ( trading as Koda Consulting),A043827,11/10/2017,1352707,1276,Consultants Fees
North West Leicestershire District Council,31UH,Finance,Exchequer Services,EXCH,Click Travel Ltd,A044308,11/10/2017,1352708,652.6,Travel and Accomodation
North West Leicestershire District Council,31UH,Communications,Corporate - Customer Services,CS,Neopost Limited,A000079,11/10/2017,1352709,5000,Postages
North West Leicestershire District Council,31UH,Planning & Development,Environment Community Planning,ECP,Rapid Vision Systems Ltd,A044267,19/10/2017,1352725,9980,CCtv Equipment
North West Leicestershire District Council,31UH,Leisure Centres,Hermitage Bar & Catering,HLBC,Hopwells Frozen Foods Limited,A000783,19/10/2017,1352742,294.04,Catering Provisions
North West Leicestershire District Council,31UH,Leisure Centres,Hermitage Leisure Centre,HLC,Admiral Cleaning Supplies Ltd,A040930,19/10/2017,1352751,431.87,Consumable Cleaning Materials/Hygiene
North West Leicestershire District Council,31UH,Housing Repairs,HRA Housing Repairs & Maintenance,HRAHRM,Kier Services Maintenance East Ltd,A039980,19/10/2017,1352753,79143.33,Decent Homes
North West Leicestershire District Council,31UH,Housing Repairs,HRA Housing Repairs & Maintenance,HRAHRM,Lovell Partnerships Ltd,A039973,19/10/2017,1352754,49141.01,Decent Homes
North West Leicestershire District Council,31UH,Street Management,Environment Waste Management,ENOWM,Sita UK Ltd,A001108,19/10/2017,1352757,251.62,Tipping Charges
North West Leicestershire District Council,31UH,Housing,HRA Housing Management,HRAHM,Atkins Limited,A044369,19/10/2017,1352758,500,Legal & Professional Services
North West Leicestershire District Council,31UH,Housing,HRA Housing Management,HRAHM,Severn Trent Water,A043977,19/10/2017,1352759,360.1,Legal & Professional Services
North West Leicestershire District Council,31UH,Information Technology,ICT Services,ICT,Virgin Media Business,A008908,19/10/2017,1352761,3040.64,Telephone/Broadband Equipment - Maintenance
North West Leicestershire District Council,31UH,Housing,HRA Housing Management,HRAHM,GatenbySanderson Limited,A034524,19/10/2017,1352766,4046,Agency Staff
North West Leicestershire District Council,31UH,Leisure Centres,Hermitage Bar & Catering,HLBC,Snackline Direct Ltd,A042489,19/10/2017,1352767,694.14,Vending Machine Provisions
North West Leicestershire District Council,31UH,Corporate Director,Human Resources,HR,GatenbySanderson Limited,A034524,19/10/2017,1352771,2947.12,Employee Advertising
North West Leicestershire District Council,31UH,Planning & Development,Environment Community Planning,ECP,Premier Security Services (Midlands) Limited,A038132,19/10/2017,1352775,288,Maintenance Contract
North West Leicestershire District Council,31UH,Neighbourhoods & Communities,N & C Community Safety,NACCS,Julia Burkin,A043213,19/10/2017,1352776,1652.95,Consultants Fees
North West Leicestershire District Council,31UH,Street Management,Environment Transport,ENOT,Boc Limited,A000193,19/10/2017,1352780,286.75,Operational Equipment - Purchases
North West Leicestershire District Council,31UH,Leisure & Culture,Cultural Services TIC,CULTIC,Ashby Dramatic Society,A021686,19/10/2017,1352787,1403.1,Ticket Sales
North West Leicestershire District Council,31UH,Finance,Financial Planning,FINPLA,Zurich Insurance Company,A033807,19/10/2017,1352789,5000,Insurances
North West Leicestershire District Council,31UH,Planning & Development,Environment - Development Control,EDC,Euro RSCG People T/A Havas People Ltd,A001395,19/10/2017,1352790,849.86,Advertising
North West Leicestershire District Council,31UH,Planning & Development,Environment - Development Control,EDC,Euro RSCG People T/A Havas People Ltd,A001395,19/10/2017,1352791,1166.92,Advertising
North West Leicestershire District Council,31UH,Street Management,Environment Transport,ENOT,Ford & Slater Group Ltd,A000625,19/10/2017,1352799,350,Repairs - Parts
North West Leicestershire District Council,31UH,Street Management,Environment Transport,ENOT,Terberg Matec UK Limited,A001647,19/10/2017,1352802,809.06,Repairs - Parts
North West Leicestershire District Council,31UH,Planning & Development,Environment - Development Control,EDC,Valuation Office Agency,A034291,19/10/2017,1352805,1498.8,External Legal Fees & Advice
North West Leicestershire District Council,31UH,Planning & Development,Environment - Development Control,EDC,Euro RSCG People T/A Havas People Ltd,A001395,19/10/2017,1352808,270.18,Advertising
North West Leicestershire District Council,31UH,Planning & Development,Environment - Development Control,EDC,Euro RSCG People T/A Havas People Ltd,A001395,19/10/2017,1352809,766.09,Advertising
North West Leicestershire District Council,31UH,Planning & Development,Environment - Development Control,EDC,Savills Commercial Limited,A032547,19/10/2017,1352812,4500,External Legal Fees & Advice
North West Leicestershire District Council,31UH,Planning & Development,Environment - Development Control,EDC,Jon Etchells Consulting Ltd,A029305,19/10/2017,1352813,965,External Legal Fees & Advice
North West Leicestershire District Council,31UH,Finance,Exchequer Services,EXCH,Comensura Limited,A036958,19/10/2017,1352815,34569.52,Agency Staff
North West Leicestershire District Council,31UH,Leisure Centres,Hood Park Leisure Centre,HPLC,Shires Event Hire,A036676,19/10/2017,1352823,270,Operational Equipment
North West Leicestershire District Council,31UH,Leisure Centres,Hood Park Bar and Catering,HPBC,LWC - Birmingham,A039915,19/10/2017,1352824,492.29,Bar Provisions
North West Leicestershire District Council,31UH,Leisure Centres,Hood Park Leisure Centre,HPLC,Dura-Sport (Leisure Care) Ltd,A041815,19/10/2017,1352825,280,General Repairs
North West Leicestershire District Council,31UH,Leisure Centres,Hood Park Leisure Centre,HPLC,Admiral Cleaning Supplies Ltd,A040930,19/10/2017,1352826,1023.97,Consumable Cleaning Materials/Hygiene
North West Leicestershire District Council,31UH,Leisure Centres,Hood Park Bar and Catering,HPBC,LWC - Birmingham,A039915,19/10/2017,1352833,563.27,Bar Provisions
North West Leicestershire District Council,31UH,Leisure Centres,Hood Park Bar and Catering,HPBC,LWC - Birmingham,A039915,19/10/2017,1352834,2512.73,Bar Provisions
North West Leicestershire District Council,31UH,Leisure Centres,Hermitage Leisure Centre,HLC,Open Box Promotions,A039721,19/10/2017,1352839,355,Publicity & Promotion
North West Leicestershire District Council,31UH,Street Management,Environment Parks,ENOP,Rigby Taylor Limited,A001392,19/10/2017,1352857,641,Operational Equipment - Purchases
North West Leicestershire District Council,31UH,Information Technology,ICT Services,ICT,Premier Paper Group,A042438,19/10/2017,1352861,525.83,Consumable Materials
North West Leicestershire District Council,31UH,Information Technology,ICT Services,ICT,Freedom Communications (UK) Ltd,A032826,19/10/2017,1352865,1543.32,Admin Equipment - Maintenance
North West Leicestershire District Council,31UH,Planning & Development,Building Control,EBC,Leicestershire County Council,A027423,19/10/2017,1352866,1890,Search Fees-LCC
North West Leicestershire District Council,31UH,Planning & Development,Environment - Development Control,EDC,Euro RSCG People T/A Havas People Ltd,A001395,19/10/2017,1352867,516.72,Advertising
North West Leicestershire District Council,31UH,Legal & Democratic,Legal Services,LDLS,Timothy Leader,A044312,19/10/2017,1352879,500,External Legal Fees & Advice
North West Leicestershire District Council,31UH,Environmental Health,Environmental Services,EES,College Garth Boarding Kennels,A000385,19/10/2017,1352881,2202.49,Stray Dog Service
North West Leicestershire District Council,31UH,Housing,HRA Housing Management,HRAHM,Redacted- Personal Data,A044373,19/10/2017,1352882,1000,Under Occupancy Incentives
North West Leicestershire District Council,31UH,Information Technology,ICT Services,ICT,Adept Telecom Plc,A044193,19/10/2017,1352885,15137.85,Contract Payments (Other) Ext
North West Leicestershire District Council,31UH,Corporate Director,Human Resources,HR,Arnold Clark Vehicle Management,A035549,19/10/2017,1352886,263.84,Vehicle Leasing
North West Leicestershire District Council,31UH,Housing,HRA Housing Management,HRAHM,BSP Consulting,A043552,19/10/2017,1352887,1820,Legal & Professional Services
North West Leicestershire District Council,31UH,Planning & Development,Environment - Town Centre/CCTV,ECCTV,Water Plus Limited,A044043,19/10/2017,1352889,447.6,Water Charges (Metered)
North West Leicestershire District Council,31UH,Finance,Exchequer Services,EXCH,Redacted- Personal Data,A000133,17/10/2017,1352950,1815.3,Ticket Sales
North West Leicestershire District Council,31UH,Housing Strategy,Community - Housing Strategy,HS,Broadlawns Guest House,A000236,19/10/2017,1352951,945,Other Services
North West Leicestershire District Council,31UH,Information Technology,ICT Services,ICT,ACS Systems (UK) Ltd T/a ACS Office Solutions,A043447,19/10/2017,1352968,9058,Admin Equipment - Purchased & Recharged
North West Leicestershire District Council,31UH,Property Services,Property Facilities Management,PROPFM,LTT Vending Limited,A037981,19/10/2017,1352969,515.1,Catering Provisions
North West Leicestershire District Council,31UH,Legal & Democratic,Legal Services,LDLS,CACI Limited,A042449,19/10/2017,1352976,6060.6,Software Licences
North West Leicestershire District Council,31UH,Finance,Revenues,REVS,Capita Business Services Ltd,A002968,19/10/2017,1352977,1620,Computing
North West Leicestershire District Council,31UH,Leisure & Culture,Sport & Physical Activity,SPA,King Edward VII Science & Sport,A029490,19/10/2017,1352978,23534,Sports and Physical Activities Delivery Plan Expenditure
North West Leicestershire District Council,31UH,Finance,Exchequer Services,EXCH,Click Travel Ltd,A044308,19/10/2017,1352980,618.79,Travel and Accomodation
North West Leicestershire District Council,31UH,Legal & Democratic,Legal Services,LDLS,Thomson Reuters (Professional) UK Limited,A037595,19/10/2017,1353001,1072.34,Computing
North West Leicestershire District Council,31UH,Legal & Democratic,Legal Services,LDLS,The Law Society,A044377,19/10/2017,1353002,1590,Professional Fees
North West Leicestershire District Council,31UH,Housing Repairs,HRA Housing Repairs & Maintenance,HRAHRM,Ward Recycling,A035471,19/10/2017,1353007,588.04,Tipping Charges
North West Leicestershire District Council,31UH,Housing Repairs,HRA Housing Repairs & Maintenance,HRAHRM,Ward Recycling,A035471,19/10/2017,1353008,350.46,Tipping Charges
North West Leicestershire District Council,31UH,Information Technology,ICT Services,ICT,Six Degrees Technology Group Ltd,A044205,19/10/2017,1353009,2301.8,Contract Payments (Other) Ext
North West Leicestershire District Council,31UH,Property Services,Property Facilities Management,PROPFM,Rentokil Initial UK Limited,A037013,19/10/2017,1353010,1411.77,General Repairs
North West Leicestershire District Council,31UH,Property Services,Property Facilities Management,PROPFM,Interserve Construction Limited,A041939,19/10/2017,1353011,52834.62,Contract Payments (Other) Ext
North West Leicestershire District Council,31UH,Information Technology,ICT Services,ICT,Dell Computer Corporation Ltd,A000470,19/10/2017,1353020,455.67,Administrative Equipment
North West Leicestershire District Council,31UH,Leisure & Culture,Cultural Services TIC,CULTIC,Roberts Coaches Limited,A017327,19/10/2017,1353026,330.3,Eevent Expenditure
North West Leicestershire District Council,31UH,Finance,Exchequer Services,EXCH,CIPFA Business Limited,A036780,19/10/2017,1353027,444,Training Courses (Organised)
North West Leicestershire District Council,31UH,Neighbourhoods & Communities,N & C Community Safety,NACCS,Donithorpe Youth Club,A040805,19/10/2017,1353029,5000,Grants
North West Leicestershire District Council,31UH,Leisure & Culture,Leisure & Cult Mangt,LCM,LCC Ibstock Community College,A029866,19/10/2017,1353031,3750,Grants
North West Leicestershire District Council,31UH,Leisure & Culture,Leisure & Cult Mangt,LCM,The Palace Community Centre Ltd,A035027,19/10/2017,1353032,500,Grants
North West Leicestershire District Council,31UH,Leisure Centres,Hermitage Bar & Catering,HLBC,LWC - Birmingham,A039915,25/10/2017,1353039,2386.04,Bar Provisions
North West Leicestershire District Council,31UH,Leisure Centres,Hermitage Bar & Catering,HLBC,LWC - Birmingham,A039915,25/10/2017,1353040,873.76,Bar Provisions
North West Leicestershire District Council,31UH,Leisure Centres,Hermitage Bar & Catering,HLBC,Catering Services (Supplies) Ltd,A000310,25/10/2017,1353046,314.62,Catering Provisions
North West Leicestershire District Council,31UH,Leisure Centres,Hermitage Leisure Centre,HLC,J P Lennard Ltd,A000969,25/10/2017,1353048,376.98,Operational Equipment
North West Leicestershire District Council,31UH,Leisure Centres,Hermitage Leisure Centre,HLC,GBG Plc,A044143,25/10/2017,1353050,800,Service Contracts
North West Leicestershire District Council,31UH,Street Management,Environment - Street Scene,ESS,Dynamic Development Services Limited,A043778,25/10/2017,1353051,462,Consultants Fees
North West Leicestershire District Council,31UH,Street Management,Environment - Street Scene,ESS,Dynamic Development Services Limited,A043778,25/10/2017,1353052,1386,Consultants Fees
North West Leicestershire District Council,31UH,Street Management,Environment Transport,ENOT,Certas Energy Uk Ltd,A043448,25/10/2017,1353053,15226.85,Fuel
North West Leicestershire District Council,31UH,Street Management,Environment Transport,ENOT,Certas Energy Uk Ltd,A043448,25/10/2017,1353054,490.3,Fuel
North West Leicestershire District Council,31UH,Housing Repairs,HRA Housing Repairs & Maintenance,HRAHRM,Laker BMS Ltd,A031787,25/10/2017,1353061,29941.9,Housing Repairs
North West Leicestershire District Council,31UH,Housing Repairs,HRA Housing Repairs & Maintenance,HRAHRM,PPG Architectural Coatings Ltd,A000876,25/10/2017,1353062,2670.03,Internal Decorations
North West Leicestershire District Council,31UH,Leisure & Culture,Cultural Services TIC,CULTIC,Ashby Dramatic Society Trust,A027431,25/10/2017,1353064,270,Ticket Sales
North West Leicestershire District Council,31UH,Leisure Centres,Hermitage Leisure Centre,HLC,Water Plus Limited,A044043,25/10/2017,1353066,1848.3,Water Charges (Metered)
North West Leicestershire District Council,31UH,Legal & Democratic,Civic Expenses,LDCE,G and G Signs,A001111,25/10/2017,1353073,371.02,Sales
North West Leicestershire District Council,31UH,Communications,Corporate - Customer Services,CS,Qmatic (United Kingdom) Ltd,A040610,25/10/2017,1353076,315,Stationery
North West Leicestershire District Council,31UH,Street Management,Environment - Street Scene,ESS,Wigston Car Breakers,A043467,25/10/2017,1353079,300,Payments To Contractor
North West Leicestershire District Council,31UH,Leisure Centres,Hermitage Leisure Centre,HLC,Siemens Energy Services Ltd,A024546,25/10/2017,1353083,262.89,Energy metering
North West Leicestershire District Council,31UH,Leisure Centres,Castle Donington Community College,CDCC,Elliott Group Limited,A005413,25/10/2017,1353088,505.72,Alternative Fitness Suite
North West Leicestershire District Council,31UH,Leisure Centres,Hermitage Bar & Catering,HLBC,Snackline Direct Ltd,A042489,25/10/2017,1353091,414.19,Catering Provisions
North West Leicestershire District Council,31UH,Planning & Development,Environment Community Planning,ECP,Leicestershire & Rutland Association,A042581,25/10/2017,1353104,400,Training Courses (Organised)
North West Leicestershire District Council,31UH,Street Management,Environment Parks,ENOP,Plantscape Ltd,A033650,25/10/2017,1353107,840,External Materials
North West Leicestershire District Council,31UH,Property Services,Property Facilities Management,PROPFM,John Merison BMC Ltd,A001092,25/10/2017,1353112,1014.12,Asset Protection
North West Leicestershire District Council,31UH,Street Management,Environment Waste Management,ENOWM,LBK Packaging,A028619,25/10/2017,1353117,250,General Materials
North West Leicestershire District Council,31UH,Planning & Development,Environment Community Planning,ECP,Leicestershire & Rutland Association,A042581,25/10/2017,1353118,300,Subscriptions
North West Leicestershire District Council,31UH,Chief Exec,Chief Executive,CHEX,Solace Enterprises Ltd,A015641,25/10/2017,1353119,377,Subscriptions
North West Leicestershire District Council,31UH,Street Management,Environment Transport,ENOT,Westbury Industrial Supplies Limited,A009933,25/10/2017,1353123,1155.26,Protective Clothing
North West Leicestershire District Council,31UH,Information Technology,ICT Services,ICT,Freedom Communications (UK) Ltd,A032826,25/10/2017,1353126,1830.24,Administrative Equipment
North West Leicestershire District Council,31UH,Information Technology,ICT Services,ICT,Reel Networks Limited,A042531,25/10/2017,1353127,485,Operational Equipment
North West Leicestershire District Council,31UH,Leisure Centres,Hermitage Leisure Centre,HLC,Dalesauna Limited,A000454,25/10/2017,1353128,1168,Repairs - Market Stalls
North West Leicestershire District Council,31UH,Leisure Centres,Hermitage Leisure Centre,HLC,Dura-Sport (Leisure Care) Ltd,A041815,25/10/2017,1353130,350,General Repairs
North West Leicestershire District Council,31UH,Leisure Centres,Hermitage Leisure Centre,HLC,Hugglescote Community Centre,A028420,25/10/2017,1353131,266,Room Hire
North West Leicestershire District Council,31UH,Housing,HRA Housing Management,HRAHM,Sure Maintenance Ltd,A040460,25/10/2017,1353137,8351.52,Plumbing & Heating
North West Leicestershire District Council,31UH,Housing Repairs,HRA Housing Repairs & Maintenance,HRAHRM,Sure Maintenance Ltd,A040460,25/10/2017,1353138,19006.21,Plumbing & Heating
North West Leicestershire District Council,31UH,Housing Repairs,HRA Housing Repairs & Maintenance,HRAHRM,Sure Maintenance Ltd,A040460,25/10/2017,1353139,2035,Plumbing & Heating
North West Leicestershire District Council,31UH,Housing Repairs,HRA Housing Repairs & Maintenance,HRAHRM,Sure Maintenance Ltd,A040460,25/10/2017,1353140,2520,Plumbing & Heating
North West Leicestershire District Council,31UH,Leisure & Culture,Sport & Physical Activity,SPA,Midland Entertainment,A042677,25/10/2017,1353145,780,Grants
North West Leicestershire District Council,31UH,Street Management,Environment Parks,ENOP,Sherriff Amenity,A034991,25/10/2017,1353146,961.18,Horticultural Supplies
North West Leicestershire District Council,31UH,Housing Repairs,HRA Housing Repairs & Maintenance,HRAHRM,Robert Woodhead Ltd,A043924,25/10/2017,1353147,224948.14,Legal & Professional Services
North West Leicestershire District Council,31UH,Housing,HRA Housing Management,HRAHM,Redacted- Personal Data,A044319,25/10/2017,1353148,420.8,Under Occupancy Incentives
North West Leicestershire District Council,31UH,Legal & Democratic,Legal Services,LDLS,Dickinson & Rabbitte Ltd,A043766,25/10/2017,1353149,497.6,External Legal Fees & Advice
North West Leicestershire District Council,31UH,Planning & Development,Environment Community Planning,ECP,Valuation Office Agency,A036190,25/10/2017,1353150,4450,External Legal Fees & Advice
North West Leicestershire District Council,31UH,Leisure & Culture,Leisure & Cult Mangt,LCM,Leics Coal Industrial Welfare Trust Fund,A044382,25/10/2017,1353153,250,Grants
North West Leicestershire District Council,31UH,Housing Repairs,HRA Housing Repairs & Maintenance,HRAHRM,Leicestershire County Council,A044385,25/10/2017,1353156,4166.67,Legal & Professional Services
North West Leicestershire District Council,31UH,Housing,HRA Housing Management,HRAHM,A J Contracts,A034116,25/10/2017,1353160,930,Contract Cleaning
North West Leicestershire District Council,31UH,Environmental Health,Environmental Services,EES,Water Plus Limited,A044043,25/10/2017,1353162,472.54,Water Charges (Metered)
North West Leicestershire District Council,31UH,Leisure Centres,Hermitage Leisure Centre,HLC,Dalesauna Limited,A000454,25/10/2017,1353163,2523,Repairs - Market Stalls
North West Leicestershire District Council,31UH,Chief Exec,Chief Executive,CHEX,Catriona Riddell & Associates Ltd,A042293,25/10/2017,1353164,834.6,Legal & Professional Services
North West Leicestershire District Council,31UH,Street Management,Environment Transport,ENOT,Second 2 None,A031408,25/10/2017,1353188,420,Vehicle Cleaning Services
North West Leicestershire District Council,31UH,Planning & Development,Environment Planning Policy,EPP,DTA Ecology Ltd,A042148,25/10/2017,1353189,800,Legal & Professional Services
North West Leicestershire District Council,31UH,Housing,HRA Performance & Business Support,HRAPBS,Taylor Bloxham Ltd,A037241,25/10/2017,1353190,847,Annual Report To Tenants
North West Leicestershire District Council,31UH,Environmental Health,Environmental Services,EES,Siemens Energy Services Ltd,A024546,25/10/2017,1353193,365.9,Operational Equipment
North West Leicestershire District Council,31UH,Finance,Exchequer Services,EXCH,Comensura Limited,A036958,25/10/2017,1353195,36527.57,Agency Staff
North West Leicestershire District Council,31UH,Information Technology,ICT Services,ICT,ACS Systems (UK) Ltd T/a ACS Office Solutions,A043447,25/10/2017,1353196,2102.8,Operational Equipment
North West Leicestershire District Council,31UH,Finance,Exchequer Services,EXCH,ESPO,A000958,24/10/2017,1353197,11191.19,Gas
North West Leicestershire District Council,31UH,Finance,Financial Planning,FINPLA,Cheshire East Borough Council,A044388,24/10/2017,1353198,5000000,Policy Lending
North West Leicestershire District Council,31UH,Finance,Financial Planning,FINPLA,Thurrock Council,A043910,24/10/2017,1353199,2000000,Policy Lending
North West Leicestershire District Council,31UH,Finance,Exchequer Services,EXCH,CBEC Eco Engineering Uk Ltd,A000133,24/10/2017,1353200,2430.1,Water Sampling Services
North West Leicestershire District Council,31UH,Street Management,Environment Parks,ENOP,Allstar,A000133,24/10/2017,1353202,361.49,Fuel
North West Leicestershire District Council,31UH,Finance,Exchequer Services,EXCH,Office Furniture Online,A042250,24/10/2017,1353203,433,Furniture
North West Leicestershire District Council,31UH,Leisure Centres,Hermitage Leisure Centre,HLC,Phs Group Ltd,A009237,24/10/2017,1353204,482.63,Service Contracts
North West Leicestershire District Council,31UH,Housing,HRA Performance & Business Support,HRAPBS,Voca Limited,A031344,24/10/2017,1353205,420,Alarm System Telephones
North West Leicestershire District Council,31UH,Finance,Financial Planning,FINPLA,Scottish Widows Investment Partnerhiip,A039247,24/10/2017,1353206,4000000,Policy Lending
North West Leicestershire District Council,31UH,Finance,Financial Planning,FINPLA,Goldman Sachs Money Market Fund,A039248,24/10/2017,1353207,4100000,Policy Lending
North West Leicestershire District Council,31UH,Finance,Financial Planning,FINPLA,Blackrock Cash Management,A039249,24/10/2017,1353208,6000000,Policy Lending
North West Leicestershire District Council,31UH,Finance,Exchequer Services,EXCH,Total Gas & Power,A033385,24/10/2017,1353289,16227.98,Electricity
North West Leicestershire District Council,31UH,Leisure Centres,Hood Park Leisure Centre,HPLC,Craftsman Quality Lockers Ltd,A039532,25/10/2017,1353293,335,Equipment For Resale
North West Leicestershire District Council,31UH,Corporate Director,Human Resources,HR,GatenbySanderson Limited,A034524,25/10/2017,1353302,4046,Agency Staff
North West Leicestershire District Council,31UH,Finance,Exchequer Services,EXCH,Click Travel Ltd,A044308,25/10/2017,1353313,482.83,Travel and Accomodation
North West Leicestershire District Council,31UH,Planning & Development,Environment - Town Centre/CCTV,ECCTV,The Flower Garden,A044389,25/10/2017,1353314,500,Grants
North West Leicestershire District Council,31UH,Housing,HRA Housing Management,HRAHM,Mr J W Thompson,A044390,25/10/2017,1353315,2350,Legal & Professional Services
North West Leicestershire District Council,31UH,Leisure & Culture,Sport & Physical Activity,SPA,Coalville Trophy Centre,A000375,25/10/2017,1353317,734.85,Sports Award Expenditure
North West Leicestershire District Council,31UH,Information Technology,ICT Services,ICT,Kingsfield Computer Products Ltd,A039732,25/10/2017,1353324,439.9,Administrative Equipment
North West Leicestershire District Council,31UH,Communications,Corporate - Communications,CP,Neopost Limited,A000079,25/10/2017,1353330,1500,Postages
North West Leicestershire District Council,31UH,Housing Strategy,Community - Housing Strategy,HS,Civica Ltd,A021357,25/10/2017,1353336,291.06,Computing
